{"text_format":"1","workbook":"xlsx","n_sheets":13,"sheets":["Mäso, mäsové výrobky","Pekárenské výrobky","Suché strukoviny a strukoviny","Ryby","tuky","Zemiaky","Ovocie, zelenina","Výrobky z ovocia a zeleniny","Hlbokomrazené výrobky","mlieko, výrobky","Hrubé potraviny","Hydina, vajíčka","Hárok1"],"not_rendered":{"charts":0,"images":0,"macros":0,"external_links":0,"defined_names":0,"comments":0,"pivot_tables":0},"unopened":[],"bounds":{"document_bytes":16777216,"sheet_cells":100000,"rows_first":2000,"rows_last":500,"rows_between":2000,"halvings":0,"cell_chars":16384,"cell_head_chars":4096},"cells_cut":0,"cells_raw":0,"read":"whole","date_system":"1900"}

{"sheet":"Mäso, mäsové výrobky","index":0,"n_rows":39,"n_cols":12,"rows_kept":39,"cut":false,"hidden":false,"merged":[[13,0,13,8],[28,0,28,8],[2,0,2,11],[4,0,5,0],[4,1,5,1],[4,2,5,2],[4,3,5,3],[4,4,5,4]]}
["Príloha č. 1 k rámcovej dohode č. ..................."]
[]
["„Dodávka mäsa a mäsových výrobkov\" pre-SOŠ Jozefa Szakkayho, Szakkay József-Szakközépiskola, Grešákova 1, 040 01 Košice,Školská jedáleň, Jedlíkova 11, 040 11 Košice"]
[]
[null,"CPV 15100000-9Živočíšne výrobky, mäso a mäsové výrobky ","Názov","Balenie","Požadované zloženie","Záruka  ","Jednotka množstva","Predpokladané množstvo ","Jednotková cena bez DPH ","Cena celkom bez DPH ","20% DPH","Cena celkom s DPH "]
[null,null,null,null,null,"Minimálna doba","ks, kg, liter","za 12 mesiacov","€","€","€","€"]
["1.","15113000 -3 Bravčové mäso","Bravčové stehno b.k.     ","voľné","chladené bez kosti, bledoružovej farby","48 hodín","kg",610]
["2.","15113000 -3 Bravčové mäso","Bravčové karé  b.k.","voľné","chladené bez kosti, bez mastných šliach, bledoružovej farby","48 hodín","kg",550]
["3.","15113000 -3 Bravčové mäso","Bravčové pliecko b.k. ","voľné","chladené bez kosti, bez kože, bledoružovej farby","48 hodín","kg",760]
["4.","15113000-3 Bravčové mäso","Bravčová krkovička b.k.","voľné","chladené bez kosti, bez kože, bledoružovej farby","48 hodín","kg",80]
["5.","15111100 -0 Hovädzie mäso","Hovädzie zadné b.k., býk","voľné","chladené bez kosti, bez kože, bez mastných časti, bledočervenej farby, biely tuk","48 hodín","kg",100]
["6.","15111100 -0 Hovädzie mäso","Hovädzie plece b.k., býk","voľné","chladené bez kosti, bez kože, bez mastných časti, bledočervenej farby, biely tuk","48 hodín","kg",420]
["7.","15111100-0 Hovädzie mäso","Hovädzia roštenka b.k.,býk",null,"chladené bez kosti, bez kože, bez mastných časti, bledočervenej farby, biely tuk","48 hodín","kg",150]
[" Spolu:",null,null,null,null,null,null,null,null,{"$f":"SUM(J7:J12)","v":0},null,{"$f":"SUM(L7:L12)","v":0}]
["1.","15130000-8 Mäsové výrobky","Bravčová klobása na pečenie","voľné","čerstvá, údená,1 ks 100 g, min.podiel mäsa 70%","48 hodín","kg",200]
["2.","15130000-8 Mäsové výrobky","Párky jemné","voľné","čerstvé , podiel mäsa min.70%","48 hodín","kg",200]
["3.","15130000-8 mäsové výrobky","Párky pikantné","voľné","čerstvé, podiel mäsa min.70%","48 hodín","kg",200]
["4.","15130000-8 Mäsové výrobky","Saláma šunková","voľné","čerstvá,podiel mäsa min.70%","48 hodín","kg",95]
["5.","15130000-8 Mäsové výrobky","Šunka","voľné","čerstvá","48 hodín","kg",38]
["6.","15130000-8 Mäsové výrobky","Šunka dusená","voľné","čerstvá,","48 hodín","kg",181]
["7.","15131500-0 Hydinové výrobky","Šunka hydinová","voľné","čerstvá","48 hodín","kg",40]
["8.","15131220-3 Slanina","Slanina oravská","voľné","čerstvá","48 hodín","kg",30]
["9.","15131220-3 Slanina","Slanina údená ","voľné","čerstvá","48 hodín","kg",60]
["10.","15131210-0 Údená šunka","Udené mäso varené","voľné","čerstvé,bez kosti,svetloružovej farby","48 hodín","kg",30]
["11.","15131210-0 Mäsové výrobky","Údené stehno bez kosti","voľné","čerstvé,bez kosti,svetloružovej farby","48 hodín","kg",60]
["12.","15131230-5Saláma","Saláma suchá 1. druh","voľné","čerstvé,vhodné na raňajky","48 hodín","kg",40]
["13.","15131230-6 Saláma","Saláma suchá 2.druh","voľné","čerstvé, vhodné do balíčkov","48 hodín","kg",30]
["14.","15131230-6","Saláma suchá 3.druh","voľné","čerstvé, z nízkou cenou","48 hodín","kg",30]
[" Spolu:"]
[]
[null,null,null,null,null,null,null,null,"Spolu bez DPH:",{"$f":"J29+J14","v":0}]
["Vypracovala: Mgr. Mária Semanová","acovala: A. Cenká"]
[]
[]
[]
[]
[null,"erik@erik.sk"]
[null,"marketig@vijofelbj.sk"]
[null,"mecom@mecom.sk"]

{"sheet":"Pekárenské výrobky","index":1,"n_rows":50,"n_cols":12,"rows_kept":50,"cut":false,"hidden":false,"merged":[[21,0,21,8],[1,0,1,11],[3,0,4,0],[3,1,4,1],[3,2,4,2],[3,3,4,3],[3,4,4,4]]}
["Príloha č. 1 k rámcovej dohode č. ..................."]
["\"Dodávka chlieb, pečivo\" pre-SOŠ Jozefa Szakkayho, Szakkay József-Szekközépiskola, Grešákova 1, 040 01 Košice, Školská jedáleň, Jedlíkova 11, 040 11 Košice"]
[]
[null,"CPV15810000-9Pekársky tovar, čerstvé pečivo a cukrárske výrobky","Názov ","Balenie","Požadované zloženie","Záruka  ","JM","Predpokladané množstvo ","Jedn.ce-na bez DPH ","Cena celkom bez DPH ","20% DPH","Cena celkom s DPH "]
[null,null,null,null,null,"Minimálna doba","ks","za 12 mesiacov","€","€","€","€"]
[1,"15811000-7 - chlieb","Chlieb","ks","Pšeničný tmavý, krájaný  1300 g","24 hodín","ks",2300]
["2.","15811000-8 -rožky","Pečivo vodové","ks","rožky 40 g","24 hodín","ks",18660]
["3.","15811200-8-rožky","Grahamové","ks","rožky 40 g","24 hodín","ks",2910]
["4.","15811000-9 -čerstvé pečivo","Žemľe","ks","Žemle 50 g","24 hodín","ks",5135]
["5.","15811000-9 čerstvé pečivo","kaiserka","ks","kaiserka celozrná 50g","24 hodín","ks",6180]
["6.","15811000-9 čerstvé pečivo","kaiserka","ks","kaiserka biela 50g","24 hodín","ks",6250]
["7.","15811000-9 čerstvé pečivo","pečivo","ks","pizza rožky","24 hodín","ks",4880]
["8.","15811000-8 rožky","pečivo","ks","sójový rožok","24 hodín","ks",1040]
["9.","15810000-9 -Pekárensky tovar,čerstvé pečivo a cukrárske výrobky","Lupáčik","ks","Lupáčik 40 g","24 hodín","ks",2000]
["10.","15811510-4-Sendviče","Sendviče","ks","Sendviče 360 g","24 hodín","ks",980]
["11.","15810000-9 -Pekárensky tovar,čerstvé pečivo a cukrárske výrobky","Záviny","ks","Závin makový,orechový,kakaový","24 hodín","ks",700]
["12.","15812100-4 Pečivo","Pečivo","ks","Lupíčik s náplňou","24 hodín","ks",1550]
["13.","15812000-3 Pečivo","Pečivo","ks","Šišky s náplňou","24 hodín","ks",700]
["14.","15812100-4 Pečivo","Vianočka","ks","Vianočka","24 hodín","ks",700]
["15.","1581000-9 Pekárenské výrobky","Bageta","ks","Bageta","24 hodín","ks",1960]
["16.","15811300-9 Croiasant","Croiasant","ks","Croiasant","24 hodín","ks",3820]
["Spolu:",null,null,null,null,null,null,null,null,{"$f":"SUM(J6:J16)","v":0},null,{"$f":"SUM(L6:L16)","v":0}]
[]
[]
["Vypracovala: Mgr. Mária Semanová","covala:A.Cenká"]
[]
[]
[null,"gedeon@vamex.sk"]
[null,"chofam@chofam.sk"]
[null,"mgoron@post.sk"]
[]
[]
[]
[]
[]
[]
[]
[]
[]
[]
[]
[]
[]
[]
[]
[]
[null,"SZITI s.r.o.","na zákusky"]
[null,"cukrárenská výroba "]
[null,"Družicová 5"]
[null,"040 12  Košice"]

{"sheet":"Suché strukoviny a strukoviny","index":2,"n_rows":17,"n_cols":11,"rows_kept":17,"cut":false,"hidden":false,"merged":[[10,0,10,8],[1,0,1,10],[3,0,4,0],[3,1,4,1],[3,2,4,2],[3,3,4,3],[3,4,4,4]]}
["Príloha č. 1 k rámcovej dohode č. ..................."]
["„Základné potraviny pre-SOŠ Jozefa Szakkayho, Szakkay József-Szakközépiskola, Grešákova1, 040 01 Košice, Školská jedáleň, Jedlíkova 11, 040 01 Košice"]
[]
[null,"CPV 03200000-3","Názov ","Balenie","Požadované zloženie","Záruka  ","Jednotka množstva","Predpokladané množstvo ","Jednotková cena bez DPH ","Cena celkom bez DPH ","Cena celkom s DPH "]
[null,null,null,null,null,"Minimálna doba","ks, kg, liter",null,"€","€","€"]
["1.","03212200 - 2 Fazuľa suchá","Fazuľa suchá","500 g","Fazuľa farebná, suchá, nemodifikovaná","12 mesiacov","kg",10]
["2.","03212200 - 2 Fazuľa suchá","Fazuľa suchá","5kg","Fazuľa biela, suchá, nemodifikovaná","12 mesiacov","kg",20]
["3.","03212213-6 Hrach suchý","Hrach suchý-polený","5 kg","Hrach sušený, polený","12 mesiacov","kg",30]
["4.","03221000-6 Cícer","Cícer","kg",null,"12 mesiacov","kg",8.5]
["5.","03212211-2 Šošovica","Šošovica","5 kg","Šošovica suchá, nemodifikovaná","12 mesiacov","kg",85]
["Spolu:"]
[]
[]
["Vypracovala: Mgr. Mária Semanová","acovala: A.Cenká"]
[null,"petrekova@inmediazv.sk"]
[null,"mail@frape-catering.sk"]
[null,"cibrik@kfood.eu"]

{"sheet":"Ryby","index":3,"n_rows":19,"n_cols":11,"rows_kept":19,"cut":false,"hidden":false,"merged":[[9,0,9,8],[1,0,1,10],[3,0,4,0],[3,1,4,1],[3,2,4,2],[3,3,4,3],[3,4,4,4]]}
["Príloha č. 1 k rámcovej dohode č. ..................."]
["„Základné potraviny pre-SOŠ Jozefa Szakkayho, Szakkay József-Szakközépiskola, Grešákova 1, 040 01 Košice, Školská jedáleň, Jedlíkova11, 040 01 Košice"]
[]
[null,"CPV 152200000-0Mrazené ryby, rybie filé a ostatné rybie mäso","Názov ","Balenie","Požadované zloženie","Záruka  ","Jednotka množstva","Predpokladané množstvo ","Jednotková cena bez DPH ","Cena celkom bez DPH ","Cena celkom s DPH "]
[null,null,null,null,null,"Minimálna doba","ks, kg, liter","za 12 mesiacov","€","€","€"]
["1. ","15221000-6Mrazené ryby","Ryby file","voľné","Mrazené file z treskovitých rýb","12 mesiacov","kg",70]
["2. ","15221000-6 Mrazené ryby","Ryby Tilapia","voľné","0%-5% vody","12 mesiacov","kg",200]
["3.","15221000-6 Mrazené ryby","Ryby Hoki","voľné","bez glazúry","12 mesiacov","kg",150]
["4.","15221000-6 Mrazené ryby","Ryby Pangasius","voľné","5% vody","12 mesiacov","kg",100]
["Spolu:",null,null,null,null,null,null,null,null,{"$f":"SUM(J6:J9)","v":0},{"$f":"SUM(K6:K9)","v":0}]
[]
[]
["Vypracovala: Mgr. Mária Semanová","la: A.Cenká"]
[]
[]
[]
[null,"petrekova@inmediazv.sk"]
[null,"sniezik@sniezik.sk"]
[null,"kosice@nextrade.sk"]

{"sheet":"tuky","index":4,"n_rows":24,"n_cols":13,"rows_kept":24,"cut":false,"hidden":false,"merged":[[14,0,14,8],[1,0,1,11],[5,0,6,0],[5,1,6,1],[5,2,6,2],[5,3,6,3],[5,4,6,4]]}
["Príloha č. 1 k rámcovej dohode č. ..................."]
["\"Základné potraviny\" pre SOŠ Jozefa Szakkayho, Szakkay József-Szakközépiskola, Grešákova 1, 040 00 Košice, Školská jedáleň, Jedlíkova 11, 040 11Košice"]
[]
[]
[]
[null,"CPV 15400000 - 2 Živočíšne alebo rastlinné oleje a tuky","Názov ","Balenie","Požadované zloženie","Záruka  ","Jednotka množstva","Predpoklad. Mn.","Jednotk. cena bez DPH ","Cena spolu bez DPH","Cena spolu s DPH","Cena celkom s DPH "]
[null,null,null,null,null,"Minimálna doba","ks","za 12 mesiacov","€",null,"€","€","         "]
[]
[1,"15411200-4 Olej na varenie  ","Olej","1 liter","slnečnicový na varenie","6 mesiacov","ks",200]
[2,"15411200-4 Olej na varenie ","Olej","1 liter","Raciol","6 mesiacov","ks",200]
[3,"15411200-4 Olej na varenie","Olej","2 litrový","Raciol","6 mesiacov","ks",100]
[4,"15411210-7 Olej na varenie","Olej","2 litrový","Fritol","6 mesiacov","ks",100]
[5,"15411210-7 Olej na varenie ","Olej","5 litrový","Fritol","6 mesiacov","ks",50]
[6,"15412200-1 Rastlinné tuky","RAMA","400 g","RAMA","1 mesiac","ks",390]
["Spolu:",null,null,null,null,null,null,null,null,null,{"$f":"SUM(K9:K13)","v":0},{"$f":"SUM(L9:L13)","v":0}]
[]
["Vypracovala: Mgr. Mária Semanová","la: A. Cenká"]
[]
[]
[]
[]
[null,"petrekova@inmediazv.sk"]
[null,"mail@frape-catering.sk"]
[null,"cibrik@kfood.eu"]

{"sheet":"Zemiaky","index":5,"n_rows":17,"n_cols":11,"rows_kept":17,"cut":false,"hidden":false,"merged":[[9,0,9,8],[1,0,1,10],[4,0,5,0],[4,1,5,1],[4,2,5,2],[4,3,5,3],[4,4,5,4]]}
["Príloha č. 1 k rámcovej dohode č. ...................",null,null,"2."]
["\"Dodávky zeleniny a ovocia\" pre-SOŠ Jozefa Szakkayho, Szakkay József-Szakközépiskola, Grešákova 1, 040 01 Košice,Školská jedáleň Jedlíkova 11, 040 11 Košice"]
[]
[]
[null,"CPV 03210000-6 Obilniny a zemiaky","Názov suroviny","Balenie","Požadované zloženie","Záruka  ","Jednotka množstva","Predpokladané množstvo ","Jednotková cena bez DPH ","Cena celkom bez DPH ","Cena celkom s DPH "]
[null,null,null,null,null,"Minimálna doba","ks, kg, liter","November,Dece-mber 2013","€","€","€"]
[]
["1.","03212100-1 Zemiaky","Zemiaky nové","kg","Zemiaky nové konzumné Slovenské","1 mesiac","kg",0]
["2.","03212100-1 Zemiaky","Zemiaky","kg","Zemiaky žlté konzumné Slovenské","6 mesiacov","kg",1050]
["Spolu:",null,null,null,null,null,null,null,null,{"$f":"SUM(J8:J9)","v":0},{"$f":"SUM(K8:K9)","v":0}]
[]
[]
["Vypracovala: Mgr. Mária Semanová","ovala: A.Cenká"]
[]
[null,"monok.jokrim@gmail.com"]
[null,"vardar@zoznam.sk"]
[null,"vfurik@gmail.com"]

{"sheet":"Ovocie, zelenina","index":6,"n_rows":46,"n_cols":11,"rows_kept":46,"cut":false,"hidden":false,"merged":[[38,0,38,8],[1,0,1,10],[2,0,3,0],[2,1,3,1],[2,2,3,2],[2,3,3,3],[2,4,3,4]]}
["Príloha č. 1 k rámcovej dohode č. ..................."]
["„Dodávky zeleniny a ovocia\"-SOŠ Jozsefa Szakkayho,Szakkay József-Szakközépiskola, Grešákova 1, 040 01 Košice, Školská jedáleň, Jedlikova 11, 040 11 Košice"]
[null,"CPV 03220000-9 Zelenina, ovocie a orechy","Názov suroviny","Balenie","Požadované zloženie","Záruka  ","Jednotka množstva","Predpokladané množstvo ","JC bez DPH","Cena spolu bez DPH ","Cena celkom s DPH "]
[null,null,null,null,null,"Minimálna doba","ks, kg","za 2 mesiace","€","€","€"]
["1.","03222111-4 Banány","Banány","kg","zrelé,bez škvŕn",null,"kg",60]
["2.","03222332-9 Broskyne","Broskyne","kg","zrelé,neprezreté",null,"kg",0]
["3.","03222210-8 Citróny","Citróny","kg","čerstvé",null,"kg",17]
["4.","03222340-8 Hrozno","Hrozno","kg","sladké",null,"kg",0]
["5.","03222322-6 Hrušky","Hrušky","kg","čerstvé",null,"kg",70]
["6.","03222321-9 Jablká","Jablká/idaret,golden,reddelicius/","kg","čerstvé",null,"kg",200]
["8.","03222240-7 Mandarinky","Mandarínka","kg","čerstvé",null,"kg",230]
["9.","03222110-7 Nektarinky","Nektarínky","kg","čerstvé",null,"kg",0]
["10.","03222220-1 Pomaranče","Pomaranče","kg","čerstvé",null,"kg",100]
["11.","03222334-3 Slivky","Slivky","kg","čerstvé",null,"kg",0]
["13.","03221000-6 Kaleráb gigant","Kaleráb gigant","kg","čerstvý",null,"kg",30]
["15.","03221000-6 Cvikla","Cvikla","kg","čerstvá","12 mesiacov","kg",30]
["16.","03221430-9 Brokolica","Brokolica čerstvá ","ks/500g","čerstvá","14 dní","ks/500g",30]
["17.","03221000-6 Cesnak","Cesnak","kg","čerstvý","12 mesiacov","kg",3]
["18.","03221113-1 Cibuľa","Cibuľa","kg","čerstvá","12 mesiacov","kg",130]
["21.","03221410-3 Kapusta červená hlávková","Kapusta červená hlávková","kg","čerstvá","12 mesiacov","kg",50]
["22.","03221410-3 Kapusta čínska","Kapusta čínska","kg","čerstvá","3 mesiace","kg",30]
["23.","03221410-3 Kapusta hlávková biela","Kapusta hlávková biela","kg","čerstvá","12 mesiacov","kg",80]
["24.","03221420-6 Karfiol","Karfiol","kg","čerstvý","7 dní","ks/kg",30]
["25.","03221440-2 Rúžičkový kel","Kel - obyčajný","kg","čerstvý","1 mesiac","kg",0]
["26.","03221112-4 Mrkva","Mrkva","kg","čerstvá","12 mesiacov","kg",90]
["28.","03221230-7 Paprika zelená","Paprika zelená","kg","čerstvá","3 mesiace","kg",20]
["30.","03221240-0 Paradajky","Paradajky kríčkové","kg","čerstvé","20 dní","kg",30]
["31.","03221000-6 Petržlen","Petržlen","kg","čerstvý","12 mesiacov","kg",20]
["32.","03221000-6 Pór","Pór","kg","čerstvý","6 mesiacov","kg",6]
["34.","03221310-2 Hlávkový šalát","Šalát hlávkový ľadový","ks","čerstvý","5 dní","ks",0]
["35.","03221260-6 Šampióny čerstvé","Šampiňóny čerstvé","kg","čerstvé","1 dňové","kg",5]
["36.","03221260-6 Hliva ustricová čerstvá","Hliva ustricová čerstvá","kg","čerstvá","1 dňové","kg",2]
["37.","03221270-9 Uhorky šalátové","Uhorky šalátové- hadovky","kg","čerstvé, zelené,","14 dní","kg",40]
["38.","03221000-6  Zeler","Zeler","kg","čerstvý","12 mesiacov","kg",25]
["40.","03221000-6  Zeler","Zeler s vňaťou","kg","čerstvý","1 mesiac","ks",0]
["41.","03221000-6 Petržlen","Petržlenová vňať kučeravá čerstvá","kg","čerstvá","10 dní","kg",18]
["42.","03221000-6 Petržlen","Petržlenová vňať hladká","kg","čerstvá","10 dní","kg",0]
["43.","03220000-9","Tekvica","kg","čerstvá","6 mesiacov","kg",0]
["Spolu:"]
[]
["Poznámka:"]
[null,"uprednostňujeme  slovenské výrobky z ekologického pestovania"]
[null,"ovocie a zeleninu požadujeme čerstvú, šviežu, šťavnatú bez hniloby a plesne, nie spretú"]
[]
[]
["Vypracovala: Mgr. Mária Semanová","la: A.Cenká"]

{"sheet":"Výrobky z ovocia a zeleniny","index":7,"n_rows":62,"n_cols":11,"rows_kept":62,"cut":false,"hidden":false,"merged":[[44,0,44,8],[1,0,1,10],[2,0,3,0],[2,1,3,1],[2,2,3,2],[2,3,3,3],[2,4,3,4]]}
["Príloha č. 1 k rámcovej dohode č. ..................."]
["\"Základné potraviny\" pre-Stredná odborná škola Jozefa Szakkayho, Szakkay József-Szakközépiskola, Grešákova 1, 040 11 Košice, ŠJ, Jedlíkova 11, 040 11 Košice"]
[null,"CPV 15300000 - Ovocie, zelenina a súvisiace výrobky","Názov suroviny","Balenie","Požadované zloženie","Záruka  ","Jedn. mn.","Predpoklad. Mn. ","Jedno. cena bez DPH ","Cena celkom bez DPH ","Cena celkom s DPH "]
[null,null,null,null,null,"Minimálna doba","ks, kg","za 12 mesiacov","€","€","€"]
["1.","15331425 - Paradajkový pretlak","Paradajkový pretlak","3600 g  ","sterilizovaná zelenina  jednodruhová","24 mesiacov","ks",26]
["2.","15331425 - Paradajkový pretlak","Paradajkový pretlak","700 g","sterilizovaná zelenina  jednodruhová","24 mesiacov","ks",150]
["3.","15331425 - Paradajkový pretlak","Paradajkový koncentrát","800 g","sterilizovaná zelenina  jednodruhová","24 mesiacov","ks",36]
["4.","15331425 - Paradajkový pretlak","Paradajkový pretlak","140 g","sterilizovaná zelenina  jednodruhová","24 mesiacov","ks",30]
["5.","15331000 - Spracovaná zelenina","Lečo  ","4250/4000 g","sterilizovaná zelenina viacdruhová","24 mesiacov","ks",16]
["6.","15331000 - Spracovaná zelenina","Lečo  ","670 g","sterilizovaná zelenina viacdruhová","24 mesiacov","ks",109]
["7.","15331000 - Spracovaná zelenina","Uhorky sterilizované      v sladkokyslom náleve      5-7 cm","3500 g","sterilizovaná zelenina  jednodruhová","24 mesiacov","ks",30]
["8.","15331000 - Spracovaná zelenina","Uhorky sterilizované      v sladkokyslom náleve      5-7 cm","680 g","sterilizovaná zelenina  jednodruhová","24 mesiacov","ks",106]
["9.","15331000 - Spracovaná zelenina","Uhorky sterilizované      v sladkokyslom náleve    6-9 cm","9700 g","sterilizovaná zelenina  jednodruhová","24 mesiacov","ks",8]
["10.","15331000 - Spracovaná zelenina","Čalamáda","3400 g","sterilizovaná zelenina","24 mesiacov","ks",32]
["11.","15331000 - Spracovaná zelenina","Ćervená repa   kocky sterilizovaná","640 g","sterilizovaná zelenina  jednodruhová","24 mesiacov","ks",50]
["12.","15331000 - Spracovaná zelenina","Hrášok mrazený ","kg","mrazená zelenina jednodruhová","12 mesiacov","kg",35]
["13.","15331000 - Spracovaná zelenina","Hrášok sterilizovaný ","425 g","sterilizovaná zelenina  jednodruhová","24 mesiacov","ks",24]
["14.","15331000 - Spracovaná zelenina","Hrášok sterilizovaný","700 g","sterilizovaná zelenina  jednodruhová","24 mesiacov","ks",115]
["15.","15331000 - Spracovaná zelenina","Hrášok sterilizovaný","4000 g","sterilizovaná zelenina  jednodruhová","24 mesiacov","ks",18]
["16.","15331000 - Spracovaná zelenina","Karfiol mrazený","kg","mrazená zelenina  jednodruhová","24 mesiacov","kg",12]
["17.","15330000-0 Spracované ovocie a zelenina","Kompót miešané ovocie","2650 g","sterilizované ovocie  viacdruhové","24 mesiacov","ks",36]
["18.","15330000-0 Spracované ovocie a zelenina","Kompót ananásový kúsky ","3100 g","sterilizované ovocie  jednodruhové","24 mesiacov","ks",57]
["19.","15330000-0 Spracované ovocie a zelenina","Kompót ananásový kúsky ","850 g","sterilizované ovocie  jednodruhové","24 mesiacov","ks",45]
["20.","15330000-0 Spracované ovocie a zelenina","Kompót marhuľový polený","2650 g","sterilizované ovocie  jednodruhové","24 mesiacov","ks",9]
["21.","15330000-0 Spracované ovocie a zelenina","Kompót broskyne polené","2650 g","sterilizované ovocie  jednodruhové","24 mesiacov","ks",21]
["22.","15330000-0 Spracované ovocie a zelenina","Kompót mandarínkový","840 g","sterilizované ovocie  jednodruhové","24 mesiacov","ks",26]
["23.","15330000-0 Spracované ovocie a zelenina","Kompót slivky ","4000 g","sterilizované ovocie  jednodruhové","24 mesiacov","ks",16]
["24.","15330000-0 Spracované ovocie a zelenina","Kompót hrušky polené","4000 g","sterilizované ovocie  jednodruhové","24 mesiacov","ks",35,null," "]
["25.","15330000-0 Spracované ovocie a zelenina","Kompót hrozno bez ","4585 g","sterilizované ovocie  jednodruhové","24 mesiacov","ks",9]
["26.","15320000-7 Ovocné a zeleninové šťavy","Džús  ZEUS ","200 ml","sterilizované ovocie  jednodruhové","24 mesiacov","ks",600]
["27.","15330000-0 Spracované ovocie a zelenina","Hrozienka","100 g","spracované ovocie  jednodruhové","24 mesiacov","ks",20]
["28.","15330000-0 Spracované ovocie a zelenina","Džém čučoriedkový","4 kg","spracované ovocie  jednodruhové","24 mesiacov","ks",12]
["29.","15330000-0 Spracované ovocie a zelenina","Džém jahodový","4kg","spracované ovocie  jednodruhové","24 mesiacov","ks",12]
["30.","15330000-0 Spracované ovocie a zelenina","Lekvár slivka-jablko","4 kg","spracované ovocie  viacdruhové","24 mesiacov","ks",16]
["31.","15330000-0 Spracované ovocie a zelenina","Krém nuteloorieškový","6kg","spracované ovocie  jednodruhové","24 mesiacov","ks",2]
["32.","15331000 - Spracovaná zelenina","Špenát mrazený ","kg","mrazená zelenina  jednodruhová","12 mesiacov","kg",25]
["33.","15331000 - Spracovaná zelenina","Kukurica  sladká sterilizovaná","2125 g","sterilizovaná zelenina  jednodruhová","24 mesiacov","ks",26]
["34.","15331000 - Spracovaná zelenina","Kukurica  sladká sterilizovaná","425 g","sterilizovaná zelenina  jednodruhová","24 mesiacov","ks",60]
["35.","15331000 - Spracovaná zelenina","Šampiňóny krájané  sterilizované ","420 g","sterilizovaná zelenina  jednodruhová","24 mesiacov","ks",83]
["36.","15331000 - Spracovaná zelenina","Šampiňóny krájané  sterilizované ","2185 g","sterilizovaná zelenina  jednodruhová","24 mesiacov","ks",25]
["37.","15331000 - Spracovaná zelenina","Fazuľové struky  žlté sterilizované","3500 g","sterilizovaná zelenina  jednodruhová","24 mesiacov","ks",6]
["38.","15331000 - Spracovaná zelenina","Fazuľové struky  žlté sterilizované","680 g","sterilizovaná zelenina  jednodruhová","24 mesiacov","ks",16]
["39.","15331000 - Spracovaná zelenina","Brokolica mrazená ","kg","mrazená zelenina jednodruhová","12 mesiacov","kg",8]
["40.","15331000 - Spracovaná zelenina","Citrónová šťava","500 ml",null,"12 mesiacov","ks",72]
["Spolu:"]
[]
["Poznámka:"]
[null,"Všetky kompóty sú s nálevom a sladené cukrom nie  umelými sladidlami."]
[]
["Vypracovala: Mgr. Mária Semanová","la: A.Cenká"]
[]
[]
[]
[]
[]
[]
[]
[]
[]
[null,"petrekova@inmedia.sk"]
[null,"mail@frape-catering.sk"]
[null,"cibrik@kfood.eu"]

{"sheet":"Hlbokomrazené výrobky","index":8,"n_rows":39,"n_cols":11,"rows_kept":39,"cut":false,"hidden":false,"merged":[[13,0,13,8],[1,0,1,10],[2,0,3,0],[2,1,3,1],[2,2,3,2],[2,3,3,3],[2,4,3,4]]}
["Príloha č. 1 k rámcovej dohode č. ..................."]
["„Základné potraviny pre Školskú jedáleň, Jedlíkova 11, 040 11 Košice"]
[null,"CPV 15896000-5  Hlboko  zmrazené výrobky","Názov suroviny","Balenie","Požadované zloženie","Záruka  ","Jednotka množstva","Predpokladané množstvo ","Jednotková cena bez DPH ","Cena celkom bez DPH ","Cena celkom s DPH "]
[null,null,null,null,null,"Minimálna doba","ks, kg, liter","za 12 mesiacov","€","€","€"]
["1.","15896000-5  Hlboko  zmrazené výrobky","Knedlíky  slivkové  hlboko zmrazené","kg   voľné    VB","pokrm - jedlo hlbokozmrazené ","24 mesiacov","ks",43.5,4.21,{"$f":"PRODUCT(H5,I5)","v":183.13499999999999},{"$f":"PRODUCT(J5,1.2)","v":219.76199999999997}]
["3.","15896000-5  Hlboko  zmrazené výrobky","Pirohy lekvárové hlboko zmrazené","kg   voľné    VB","pokrm - jedlo hlbokozmrazené ","24 mesiacov","kg",81,1.903,154.143,184.9716]
["4.","15896000-5  Hlboko  zmrazené výrobky","Pizza hawaii hlboko zmrazená","600 g   / 12 ks","pokrm - jedlo hlbokozmrazené ","24 mesiacov","ks",84,2.4,201.6,241.92]
["5.","15896000-5  Hlboko  zmrazené výrobky","Pizza šunková hlboko zmrazená","600 g   / 12 ks","pokrm - jedlo hlbokozmrazené ","24 mesiacov","ks",84,2.4,201.6,241.92]
["6.","15896000-5  Hlboko  zmrazené výrobky","Pizza zeleninová hlboko zmrazená","600 g   / 12 ks","pokrm - jedlo hlbokozmrazené ","24 mesiacov","ks",84,2.3119999999999998,194.208,233.0496]
["7.","15896000-5  Hlboko  zmrazené výrobky","Zemiakové šúľance  hlboko zmrazené","kg   voľné    VB","z čestvých zemiakov pripravované","24 mesiacov","kg",1.6,3.74,5.9840000000000009,7.1808000000000005]
["8.","15896000-5  Hlboko  zmrazené výrobky","Veterníky hlboko zmrazené 14,8 g","135 ks  voľné","odpalované veterníčky s náplňou","24 mesiacov","ks",405,0.14000000000000001,56.7,68.040000000000006]
["9.","15896000-5  Hlboko  zmrazené výrobky","Lístkový hrebeň marhuľový 65 g","voľné    80 ks","pokrm - jedlo hlbokozmrazené ","24 mesiacov","ks",160,0.23,36.800000000000004,44.160000000000004]
[]
["Spolu:",null,null,null,null,null,null,null,null,{"$f":"SUM(J5:J12)","v":1034.17},{"$f":"SUM(K5:K12)","v":1241.0040000000001}]
[]
[]
["Poznámka:"]
[null,"Hlbokozmrazené potraviny majú byť na prírodnej báze bez prídavných umelých látok látok /bez,alebo  čo najmenej E/"]
[]
[]
["Vypracovala: Mgr. Mária Semanová","covala: A. Cenká"]
[]
[]
[]
[]
[]
[]
[]
[]
[]
[]
[null,"kosice@inmediazv.sk"]
[null,"petrova@ryba.sk"]
[null,"cibrik@kfood.eu"]
[null,"topcatering@topcatering.sk"]
[null,"officeke@atc.eu"]
[null,"cassovia@borioca.sk"]
[null,"besster@centrum.sk"]
[null,"hovan@norma-slovakia.eu"]

{"sheet":"mlieko, výrobky","index":9,"n_rows":39,"n_cols":13,"rows_kept":39,"cut":false,"hidden":false,"merged":[[33,0,33,8],[1,0,1,10],[4,0,5,0],[4,1,5,1],[4,2,5,2],[4,3,5,3],[4,4,5,4]]}
[]
["„Mliečne výrobky\" pre-Stredná odborná škola Jozefa Szakkayho, Szakkay József-Szakközépiskola, Grešákova 1, 040 0Košice"]
[null,null,null,null,"Školská jedáleň , Jedlíkova 11, 040 11 Košice"]
[]
[null,"CPV15500000-3 Mliečne výrobky","Názov ","Balenie","Požadované zloženie","Záruka  ","Jedn.mn.","Predpokladané množstvo ","Jedn. cena bez DPH","Cena spolu bez DPH ","Cena spolu s DPH"]
[null,null,null,null,null,"Minimálna doba","ks,kg,lit.","za 12 mesiacov",null,"€","€"]
["1.","15511100-4                Pasterizované mlieko","Mlieko","1 liter","polotučné, obsah tuku 1,5%, trvanlivé","92 dní","liter",2000]
["2.","15511100-8                Pasterizované mlieko","Mlieko","1 liter","plnotučné mlieko 3,5%","92 dní","liter",800]
["3.","15511100-8                Pasterizované mlieko","Mlieko čertvé","1 liter","polotučné, obsah tuku 1,5%, čerstvé","7 dní","liter",2000]
["4.","1553000-2 Maslo","Maslo Liptov","125 g","čerstvé, obsah mliečneho tuku 82%","10 dní","kg",400]
["5.","1553000-2 Maslo","Maslo Liptov","250g","čerstvé, obsah mliečneho tuku 82%","10 dní","kg",300]
["6.","1553000-2 Maslo","Maslo čerstvé","125 g","čerstvé, obsah mliečneho tuku ","10 dní","kg",200]
["7.","1553000-2 Maslo","Maslo čerstvé","100g","čerstvé, obsah mliečneho tuku ","10 dní","kg",500]
["8.","1553000-2 Maslo","Maslo čerstvé","250 g","čerstvé, obsah mliečneho tuku ","10 dní","kg",100]
["9.","15550000-8 Mliečne výrobky rôznych druho","Tvaroh","0,25 kg","hrudkový s obsahom tuku 2,5%","5 dní","kg",100]
["10.","15550000-8 Mliečne výrobky rôznych druho","Tvaroh","3 kg","hrudkový s obsahom tuku 2,5%","5 dní","kg",200]
["11.","15544000-3                Tvrdý syr","Syr Eidam ","kg","neúdený 45%","20 dní","kg",280]
["12.","15544000-3                Tvrdý syr","Syr Eidam","kg","údený 45 %","20 dní","kg",110]
["13.","15544000-3                Tvrdý syr","Syr Eidam","kg","neúdený 30%","20 dní","kg",100]
["14.","15542200-1                Mäkký syr","Syr tavený","kg","Syr tavený ","20 dní","kg",20]
["15.","15542200-1                Mäkký syr","Syr tavený","ks","Syrokrém 150 g","14 dní","ks",1000]
["16.","15542200-1                Mäkký syr","Syr tavený","140 g","trojuholníčky/Lunex, Karička a pod./","14 dní","ks",700]
["17.","15542200-1                Mäkký syr","Syr tavený","100 g","Syr tavený 100 g","14 dní","ks",600]
["18.","15543100-7                Mäkký syr","Syr tavený","kg","Syr s modrou plesňou","14 dní","kg",9]
["19.","15512000-0                Smotana","Smotana","1litra","na varenie RAJO 10% a pod.","14 dní","ks",240]
["20.","15512000-0                Smotana","Smotana","0,2 litra","pochúťková kyslá  s obsahom tuku 14%","10 dní","ks",500]
["21.","15512000-0                Smotana","Smotana","0,25 litra","na šľahanie 33%","14 dní","ks",120]
["22.","15540000-5                Syrárske výrobky","Syrárske výrobky","1kg","bryndza","10 dní","kg",50]
["23.","15551300-8                Jogurt","Jogurt biely","5 kg/ 3 kg","plnotučný","10 dní","kg",125]
["24.","15551320-4                Ochutený jogurt","Jogurt ovocný ","150 ml","smotanový","10 dní","ks",900]
["25.","15551320-4                Ochutený jogurt","Jogurt ovocný rôzné príchute ","135 ml","smotanový","10 dní","ks",900]
["26.","15551000-5 Jogurt a ostatné fermentované mliečne výrobky","Termix dezert","90 g","vanilkový,čokoládový","15 dní","ks",600]
["27.","15550000-8 Mliečné výrobky rôznych druhov","Puding čokoládový so šľaháčkou","100 g","rôzne príchute","10 dní","ks",300,null,null,null,null,"  "]
["Spolu:",null,null,null,null,null,null,null,null,{"$f":"SUM(J7:J33)","v":0},{"$f":"SUM(K7:K33)","v":0}]
[]
[]
[]
["Vypracovala: Mgr. Mária Semanová","la: A.Cenká","2021-08-09",null,"Vypracoval"]
[null,null,null,null,"za dodávateľa:"]

{"sheet":"Hrubé potraviny","index":10,"n_rows":65,"n_cols":11,"rows_kept":65,"cut":false,"hidden":false,"merged":[[2,0,2,10],[4,0,5,0],[4,1,5,1],[4,2,5,2],[4,3,5,3],[4,4,5,4],[56,0,56,8],[15,0,15,8],[49,0,49,8],[52,0,53,0],[52,1,53,1],[52,2,53,2],[52,3,53,3],[52,4,53,4]]}
[]
["Príloha č. 1 k rámcovej dohode č. ..................."]
["„Základné potraviny\"pre-SOŠ Jozefa Szakkayho, Szakkay József-Szakközépiskola, Grešákova 1, 040 11 Košice, Školská jedáleň, Jedlíkova11, 040 11 Košice "]
["             "]
[null,"CPV 15600000 - Mlynské výrobky, škrob a škrobové výrobky","Názov","Balenie","Požadované zloženie ","Záruka  ","Jednotka množstva","Predpokladané množstvo ","Jednotková cena bez DPH ","Cena celkom bez DPH ","Cena spolu s DPH"]
[null,null,null,null,null,"Minimálna doba","ks, kg, liter",null,"€","€","€"]
["1.","15611000 Lúpaná ryža","Ryža","1 kg","lúpaná guľatozrnná I. trieda ","6 mesiacov","kg",1143]
["2.","15612100 Pšeničná múka","Múka","1 kg","hladká,špeciál 00 extra, zloženie potravinárska pšenica, pitná voda","6 mesiacov","kg",590]
["3.","15612100 Pšeničná múka","Múka","1 kg","polohrubá, výberová, zloženie potravinárska pšenica, pitná voda","6 mesiacov","kg",970]
["4.","15612100 Pšeničná múka","Múka","1 kg","hrubá,výberová, zloženie potravinárska pšenica, pitná voda","6 mesiacov","kg",240]
["5.","15625000 Krupica","Krupica","0,5 kg","detská, s obsahom B-11,14g,S-76,90g,T-1,01g","6 mesiacov","ks",40]
["6.","6.","Zlatý krém/klas/","40 g",null,"6 mesiacov","ks",400]
["7.","15620000-0 Škroby a škrobové výrobky","Zlatý krém/klas/","kg",null,"6 mesiacov","kg",10]
["8.","15612500- Pekárenské výrobky","Strúhanka","0,5 kg","pšeničná","5 mesiacov","ks",700]
["9.","15612500- Pekárenské výrobky","Strúhanka","voľne balená","pšeničná","5 mesiacov","kg",30]
[" Spolu:"]
["1.","1585121 - Pripravené cestoviny"," Cestovina tarhoňa","5 kg","vaječná","12 mesiacov","kg",166]
["2.","1585121 - Pripravené cestoviny","Cestovina  ryža","5 kg","vaječná","12 mesiacov","kg",194]
["3.","1585121 - Pripravené cestoviny","Cestovina-špagety","5 kg","bezvaječná semolinová sušená, B-12,5g, S-73,0g,T-1,4g","12 mesiacov","kg",295]
["4.","1585121 - Pripravené cestoviny","Cestovina široké rezance","5 kg","bezvaječná semolinová sušená, B-12,5g, S-73,0g,T-1,4g","12 mesiacov","kg",245]
["5.","1585121 - Pripravené cestoviny","Cestovina fliačky veľké","5 kg","bezvaječná semolinová sušená, B-12,5g, S-73,0g,T-1,4g","12 mesiacov","kg",130]
["6.","1585121 - Pripravené cestoviny","Cestovina  kolienka","5 kg","semolinové","12 mesiacov","kg",177]
["7.","1585121 - Pripravené cestoviny","Cestovina makaróny","5kg","semolinové","12 mesiacov","kg",150]
["8.","1585121 - Pripravené cestoviny","Cestovina  písmenká","5 kg","vaječné","12 mesiacov","kg",20]
["9.","1585121 - Pripravené cestoviny","Cestovina-špirala- vretená","5 kg","bezvaječná semolinová sušená, B-12,5g, S-73,0g,T-1,4g","12 mesiacov","kg",115]
["10.","1585121-Pripravené","Niťovky","5 kg","vaječné","12 mesiacov","kg",20]
["11.","15831200 - Biely cukor","Cukor","1 kg","kryštálový biely","12 mesiacov","kg",1090]
["12.","15831200 - Biely cukor","Cukor","1 kg","práškový s obsahom protihrudkujúcich látok, kukuričný škrob 3%","12 mesiacov","kg",132]
["13.","15831200 - Biely cukor","Cukor","20 g","Vanilkový","12 mesiacov","ks",500]
["14.","15871110 - Ocot alebo ekvivalent","Ocot","1 liter","kvasný liehový 8%","12 mesiacov","liter",65]
["15.","15841300 - Nesladený kakaový prášok","Kakao","0,1 kg","kakaový prášok so zníženým obsahom tuku, obsah kakaového masla 12%","12 mesiacov","ks",108]
["16.",null,"Granko","0,25 kg",null,"12 mesiacov","ks",50]
["17.",null,"Káva melta","0,50 kg","pražený koreň čakanky mletý","12 mesiacov","ks",6]
["18.","15872000-1 Bylinky a korenie","Bobkový list  celý","5 g",null,"12 mesiacov","ks",23]
["19.","15870000-7 Koreniny a chuťové prísady","Vegeta bez glutamanu","0,20 kg",null,"12 mesiacov","ks",169]
["20.","15872400-5 Soľ","Soľ","kg","jódom","12 mesiacov","kg",332]
["21.","15872000-1 Bylinky a korenie","Rasca  mletá","20 g",null,"12 mesiacov","ks",28]
["22.","15872000-1 Bylinky a korenie","Majorán drvený","5 g","bez prachu","12 mesiacov","ks",34]
["23.","15872100-Paprika","Červená paprika","1 kg","mletá,sladká","12 mesiacov","ks",18]
["24.","15872100 - Paprika","Červená paprika","40 g","mletá, sladká","12 mesiacov","ks",303]
["25.","15872000-1 Bylinky a korenie","Korenie čierne mleté","20g",null,"12 mesiacov","ks",290]
["26.","15872000-1 Bylinky a korenie","Škorica mletá","20g",null,"12 mesiacov","ks",6]
["27.","15871250 - Horčica","Horčica","200 g","plnotučná, bez chemickej konzervácie","12 mesiacov","ks",12]
["28.","15871250 - Horčica","Horčica","940 g","plnotučná, bez chemickej konzervácie","12 mesiacov","ks",30]
["29.","15871250 - Horčica","Horčica","5000g","plnotučná, bez chemickej konzervácie","12 mesiacov","ks",20]
["30.","15898000-9 Droždie","Droždie čerstvé 42 g","ks","čerstvé pekárenské sušina min.28%","1 mesiac","ks",1023]
["31.","15863000-5 Čaj","Čaj ovocný","40 g",null,"12 mesiacov","ks",1500]
["32.","15863000-5 Čaj","Čaj čierny- pigi","30 g",null,"24 mesiacov","ks",600]
["33.","15863000-5 Čaj","Čaj zelený","30 g",null,"12 mesiacov","ks",330]
[]
[]
[]
[null,"CPV 15981000-8  Minerálne vody","Názov","Balenie","Požadované zloženie ","Záruka  ","Jednotka množstva","Predpokladané množstvo ","Jedn. cena bez DPH ","Cena celkom bez DPH ","Cena celkom s DPH"]
[null,null,null,null,null,"Minimálna doba","ks, kg, liter","za 12 mesiacov","€","€","€"]
["1.","1598100-8 Minerálne vody","Pramenitá voda","0,75dcl",null,"6 mesiacov","ks",100,null,{"$f":"PRODUCT(H55,I55)","v":100}]
[]
["Celkom:",null,null,null,null,null,null,null,null,{"$f":"SUM(J55)","v":100}]
[]
[]
[]
["Vypracovala: A.Cenká","Alica Cenká",null,null,null,null,null,null,null,{"$f":"J57+J50","v":100}]
[]
[null,"petrekova@inmediazv.sk"]
[null,"cibrik@kfood.eu"]
[null,"mail@frape-catering.sk"]

{"sheet":"Hydina, vajíčka","index":11,"n_rows":26,"n_cols":14,"rows_kept":26,"cut":false,"hidden":false,"merged":[[6,0,6,8],[16,0,16,8],[1,0,1,10],[3,0,4,0],[3,1,4,1],[3,2,4,2],[3,3,4,3],[3,4,4,4]]}
["Príloha č. 1 k rámcovej dohode č. ..................."]
["„Základné potraviny\" pre-SOŠ Jozefa Szakkayho, Szakkay József Szakközépiskola, Grešákova 1, 040 01 Košice“"]
["                                                                                             Školská jedáleň, Jedlíkova 11, 040 11 Košice"]
["P.č.","CPV 03142500-3 poľnohospodárske a záhradnícke produkty","Názov","Balenie","Požadované zloženie ","Záruka","JM","Predpokladané množstvo ","Jednot. cena bez DPH ","Cena celkom bez DPH ","Cena spolu s DPH"]
[null,null,null,null,null,"Minimálna doba","ks,kg","za 12 mesiacov","€","€"]
[1,"03142500 - Vajcia","Vajcia","voľné","čisté, akostná trieda A, veľkosť L","15 dní","ks",10475,null,null,null,null,null," "]
[" Spolu:",null,null,null,null,null,null,null,null,{"$f":"SUM(J6)","v":0},{"$f":"SUM(K6)","v":0}]
["1.","15896000 - Hlboko zmrazené výrobky","Kuracie prsia","voľné","mrazené, bez kosti a kože, bez glazúry","12 mesiacov","kg",719]
["2.","15896000 - Hlboko zmrazené výrobky","Kuracie prsia kalibrované","voľné","mrazené, bez kosti a kože, bez glazúry 180 g","12 mesiacov","kg",400]
["3.","15896000- Hlbokomrazené výrobky","Kuracie stehná ","voľné","mrazené s kosťou a kožou 220 g","12 mesiacov","kg",699]
["4.","15896000- Hlbokomrazené výrobky","Kuracie stehná ","voľné","mrazené s kosťou a kožou 250 g","12 mesiacov","kg",113]
["5.","15896000- Hlbokomrazené výrobky","Kuracie stehná ","voľné","mrazené bez kosti ,nekalibrované","12 mesiacov","kg",275]
["6.","15896000- Hlbokomrazené výrobky","Morkacie prsia","voľné","mrazené bez kosti a kože, bez glazúry","12 mesiacov","kg",80]
["7.","15896000- Hlbokomrazené výrobky","Morkacie stehná ","voľné","mrazené bez kosti a kože,nekalibrované","12 mesiacov","kg",200]
["8.","15896000 - Hlboko zmrazené výrobky","Kurča","voľné","mrazené,  bez drobkov","12 mesiacov","kg",132]
["9.","15896000 - Hlboko zmrazené výrobky","Kuracia pečeň","voľné","mrazená",null,"kg",35]
[null,null,null,null,null,null,null,null,null,{"$f":"SUM(J8:J16)","v":0},{"$f":"SUM(K8:K16)","v":0}]
[]
[null,null,null,null,null,null,null,null,null,{"$f":"J17+J7","v":0},{"$f":"K17+K7","v":0}]
[]
["Vypracovala: Mgr. Mária Semanová","la:Alica Cenká"]
[]
[]
[null,"petrekova@inmediazv.sk"]
[null,"kosice@nextrade.sk"]
[null,"sniezik@sniezik.sk"]

{"sheet":"Hárok1","index":12,"n_rows":0,"n_cols":0,"rows_kept":0,"cut":false,"hidden":false,"merged":[]}